fUSD/lending_fUSD_20241003
["ID","MTS","AMOUNT","RATE_DAILY","PERIOD"]
[339780082,1727982677235,-500.0,0.00033698,120]
[339780083,1727982677244,-500.0,0.00033698,120]
[339780084,1727982677253,-1291.62,0.00033698,120]
[339780085,1727982677263,-538.18,0.00033698,120]
[339780086,1727982677272,-151.0,0.00033698,7]
[339780087,1727982677282,-647.33,0.00033698,120]
[339780088,1727982677291,-151.0,0.00033698,7]
[339780089,1727982677300,-500.0,0.00033698,120]
[339780090,1727982677310,-500.0,0.00033698,120]
[339780091,1727982677319,-1613.024768,0.00033698,7]
[339780092,1727982677329,-500.0,0.00033698,120]
[339780093,1727982677338,-1613.024768,0.00033698,7]
[339780094,1727982677347,-745.31,0.00033698,120]
[339780095,1727982677361,-500.0,0.00033698,5]
[339780096,1727982677370,-500.0,0.00033698,120]
[339780097,1727982677380,-971.05,0.00033698,120]
[339780098,1727982677390,-500.0,0.00033698,120]
[339780099,1727982677399,-500.0,0.00033698,120]
[339780100,1727982677409,-151.0,0.00033698,7]
[339780101,1727982677418,-500.0,0.00033698,120]
[339780102,1727982677428,-211.97650156,0.00033698,120]
[339780103,1727982677439,-500.0,0.00033698,120]
[339780104,1727982677449,-500.0,0.00033698,120]
[339780105,1727982677458,-1146.72,0.00033698,120]
[339780106,1727982677468,-500.0,0.00033698,120]
[339780107,1727982677477,-498.156299,0.00033698,7]
[339780108,1727982677486,-304.21715821,0.00033698,120]
[339780109,1727982677496,-498.156299,0.00033698,7]
[339780110,1727982677506,-500.0,0.00033698,120]
[339780111,1727982677516,-500.0,0.00033698,120]
[339780112,1727982677526,-500.0,0.00033698,120]
[339780113,1727982677535,-868.99,0.00033698,120]
[339780114,1727982677546,-508.63374606,0.00033698,120]
[339780115,1727982677556,-500.0,0.00033698,120]
[339780116,1727982677565,-500.0,0.00033698,120]
[339780117,1727982677575,-500.0,0.00033698,120]
[339780118,1727982677584,-785.7,0.00033698,120]
[339780119,1727982677594,-508.63072965,0.00033698,120]
[339780120,1727982677603,-922.29,0.00033698,120]
[339780121,1727982677613,-151.0,0.00033698,7]
[339780122,1727982677622,-500.0,0.00033698,120]
[339780123,1727982677632,-151.0,0.00033698,7]
[339780124,1727982677641,-500.0,0.00033698,120]
[339780125,1727982677650,-500.0,0.00033698,120]
[339780126,1727982677660,-500.0,0.00033698,120]
[339780127,1727982677670,-500.0,0.00033698,120]
[339780128,1727982677680,-1005.98,0.00033698,120]
[339780129,1727982677693,-1265.11,0.00033698,120]
[339780130,1727982677703,-500.0,0.00033698,120]
[339780131,1727982677713,-1058.62,0.00033698,120]
[339780132,1727982677722,-1000.0,0.00033698,120]
[339780133,1727982677734,-500.0,0.00033698,120]
[339780134,1727982677743,-1285.4,0.00033698,120]
[339780135,1727982677753,-500.0,0.00033698,120]
[339780136,1727982677763,-504.26416309,0.00033698,120]
[339780137,1727982677772,-500.0,0.00033698,120]
[339780138,1727982677782,-910.74,0.00033698,120]
[339780139,1727982677791,-500.0,0.00033698,120]
[339780140,1727982677800,-1109.6,0.00033698,120]
[339780141,1727982677809,-500.0,0.00033698,120]
[339780142,1727982677819,-500.0,0.00033698,120]
[339780143,1727982677828,-523.85,0.00033698,120]
[339780144,1727982677838,-506.69435127,0.00033698,120]
[339780145,1727982677848,-2405.98,0.00033698,120]
[339780146,1727982677863,-500.0,0.00033698,120]
[339780147,1727982677879,-500.0,0.00033698,120]
[339780148,1727982677888,-532.25,0.00033698,120]
[339780149,1727982677898,-500.0,0.00033698,120]
[339780150,1727982677908,-500.0,0.00033698,120]
[339780151,1727982677917,-1257.82,0.00033698,120]
[339780152,1727982677927,-509.33,0.00033698,120]
[339780153,1727982677942,-509.36287854,0.00033698,120]
[339780154,1727982677952,-701.66,0.00033698,120]
[339780155,1727982677963,-500.0,0.00033698,120]
[339780156,1727982677973,-1224.27,0.00033698,120]
[339780157,1727982677983,-1189.92,0.00033698,120]
[339780158,1727982677994,-500.0,0.00033698,120]
[339780159,1727982678004,-500.0,0.00033698,120]
[339780160,1727982678013,-733.61,0.00033698,120]
[339780161,1727982678023,-576.54,0.00033698,120]
[339780162,1727982678034,-862.23,0.00033698,120]
[339780163,1727982678044,-500.0,0.00033698,120]
[339780164,1727982678053,-721.29,0.00033698,120]
[339780165,1727982678065,-668.9,0.00033698,120]
[339780166,1727982678075,-500.0,0.00033698,120]
[339780167,1727982678084,-572.02,0.00033698,120]
[339780168,1727982678093,-659.41,0.00033698,120]
[339780169,1727982678103,-740.9,0.00033698,120]
[339780170,1727982678113,-650.73,0.00033698,120]
[339780171,1727982678122,-500.0,0.00033698,120]
[339780172,1727982678132,-870.17,0.00033698,120]
[339780173,1727982678142,-500.0,0.00033698,120]
[339780174,1727982678151,-500.0,0.00033698,120]
[339780175,1727982678160,-530.24,0.00033698,120]
[339780176,1727982678170,-639.02,0.00033698,120]
[339780177,1727982678180,-500.0,0.00033698,120]
[339780178,1727982678190,-500.0,0.00033698,120]
[339780179,1727982678201,-836.27,0.00033698,120]
[339780180,1727982678211,-500.0,0.00033698,120]
[339780181,1727982678220,-430.31644487,0.00033698,120]
[339780182,1727982678230,-500.0,0.00033698,120]
[339780183,1727982678240,-1752.48,0.00033698,120]
[339780184,1727982678249,-1674.45,0.00033698,120]
[339780185,1727982678259,-1168.54,0.00033698,120]
[339780186,1727982678269,-500.0,0.00033698,120]
[339780187,1727982678279,-500.0,0.00033698,120]
[339780188,1727982678288,-2430.04,0.00033698,120]
[339780189,1727982678298,-500.0,0.00033698,120]
[339780190,1727982678307,-20000.0,0.00033698,2]
[339780191,1727982678317,-500.0,0.00033698,120]
[339780192,1727982678326,-500.0,0.00033698,120]
[339780193,1727982678335,-500.0,0.00033698,120]
[339780194,1727982678345,-500.0,0.00033698,90]
[339780195,1727982678356,-2235.25,0.00033698,120]
[339780196,1727982678368,-749.88,0.00033698,24]
[339780197,1727982678377,-500.0,0.00033698,120]
[339780198,1727982678386,-2252.62,0.00033698,120]
[339780199,1727982678396,-1158.96,0.00033698,120]
[339780200,1727982678407,-500.0,0.00033698,120]
[339780201,1727982678416,-500.0,0.00033698,120]
[339780202,1727982678426,-500.0,0.00033698,120]
[339780203,1727982678439,-504.94,0.00033698,120]
[339780204,1727982678448,-759.01,0.00033698,120]
[339780205,1727982678457,-500.0,0.00033698,120]
[339780206,1727982678467,-1642.55,0.00033698,120]
[339780207,1727982678476,-1126.69,0.00033698,120]
[339780208,1727982678485,-1518.09,0.00033698,120]
[339780209,1727982678495,-500.0,0.00033698,120]
[339780210,1727982678505,-500.0,0.00033698,120]
[339780211,1727982678515,-2332.95,0.00033698,120]
[339780212,1727982678524,-500.0,0.00033698,120]
[339780213,1727982678533,-881.14,0.00033698,120]
[339780214,1727982678542,-1062.68,0.00033698,120]
[339780215,1727982678551,-1089.61,0.00033698,120]
[339780216,1727982678561,-500.0,0.00033698,120]
[339780217,1727982678569,-500.0,0.00033698,120]
[339780218,1727982678579,-1981.95,0.00033698,120]
[339780219,1727982678588,-500.0,0.00033698,120]
[339780220,1727982678597,-500.0,0.00033698,120]
[339780221,1727982678607,-500.0,0.00033698,120]
[339780222,1727982678616,-5241.23,0.00033698,120]
[339780223,1727982678626,-154.08687875,0.00033698,120]
[339780224,1727982678636,-500.0,0.00033698,120]
[339780225,1727982678646,-2018.74,0.00033698,120]
[339780226,1727982678656,-500.0,0.00033698,120]
[339780227,1727982678665,-500.0,0.00033698,120]
[339780228,1727982678674,-535.49,0.00033698,120]
[339780229,1727982678683,-500.0,0.00033698,120]
[339780230,1727982678693,-500.0,0.00033698,120]
[339780231,1727982678702,-500.0,0.00033698,120]
[339780232,1727982678712,-1250.03,0.00033698,120]
[339780233,1727982678721,-2902.72,0.00033698,120]
[339780234,1727982678730,-500.0,0.00033698,120]
[339780235,1727982678739,-2587.44,0.00033698,120]
[339780236,1727982678749,-500.0,0.00033698,120]
[339780237,1727982678758,-500.0,0.00033698,120]
[339780238,1727982678767,-2510.63,0.00033698,120]
[339780239,1727982678777,-723.92,0.00033698,120]
[339780240,1727982678786,-711.37,0.00033698,120]
[339780241,1727982678796,-500.0,0.00033698,120]
[339780242,1727982678805,-1791.96,0.00033698,120]
[339780243,1727982678815,-3166.02,0.00033698,120]
[339780244,1727982678825,-1267.03,0.00033698,120]
[339780245,1727982678834,-500.0,0.00033698,120]
[339780246,1727982678844,-500.0,0.00033698,120]
[339780247,1727982678853,-619.48,0.00033698,120]
[339780248,1727982678863,-1769.87,0.00033698,120]
[339780249,1727982678872,-621.03,0.00033698,120]
[339780250,1727982678882,-856.57,0.00033698,120]
[339780251,1727982678891,-500.0,0.00033698,120]
[339780252,1727982678901,-500.0,0.00033698,120]
[339780253,1727982678910,-500.0,0.00033698,120]
[339780254,1727982678920,-3322.9,0.00033698,120]
[339780255,1727982678929,-501.16336362,0.00033698,120]
[339780256,1727982678939,-500.0,0.00033698,120]
[339780257,1727982678949,-972.85,0.00033698,120]
[339780258,1727982678959,-500.0,0.00033698,120]
[339780259,1727982678968,-424.21933429,0.00033698,120]
[339780260,1727982678991,-822.64066571,0.00033698,120]
[339780261,1727982679001,-500.0,0.00033698,120]
[339780262,1727982679010,-500.0,0.00033698,120]
[339780263,1727982679020,-730.31,0.00033698,120]
[339780264,1727982679029,-830.42,0.00033698,120]
[339780265,1727982679039,-500.0,0.00033698,120]
[339780266,1727982679048,-588.05,0.00033698,120]
[339780267,1727982679057,-1243.24,0.00033698,120]
[339780268,1727982679066,-4269.241943,0.00033698,7]
[339780269,1727982679076,-500.0,0.00033698,120]
[339780270,1727982679085,-500.0,0.00033698,120]
[339780271,1727982679094,-1230.46,0.00033698,120]
[339780272,1727982679103,-555.63,0.00033698,120]
[339780273,1727982679113,-4269.241943,0.00033698,7]
[339780274,1727982679123,-1362.61,0.00033698,120]
[339780275,1727982679132,-500.0,0.00033698,120]
[339780276,1727982679141,-1319.53,0.00033698,120]
[339780277,1727982679151,-981.99,0.00033698,120]
[339780278,1727982679160,-825.83,0.00033698,120]
[339780279,1727982679169,-500.0,0.00033698,120]
[339780280,1727982679178,-1051.47,0.00033698,120]
[339780281,1727982679188,-1494.54,0.00033698,120]
[339780282,1727982679198,-1306.0,0.00033698,120]
[339780283,1727982679207,-1031.9,0.00033698,120]
[339780284,1727982679217,-572.36,0.00033698,120]
[339780285,1727982679227,-500.0,0.00033698,120]
[339780286,1727982679236,-532.99,0.00033698,120]
[339780287,1727982679245,-1275.22,0.00033698,120]
[339780288,1727982679254,-500.0,0.00033698,120]
[339780289,1727982679264,-3179.4,0.00033698,120]
[339780290,1727982679273,-1463.89,0.00033698,120]
[339780291,1727982679282,-2471.4,0.00033698,120]
[339780292,1727982679291,-500.0,0.00033698,120]
[339780293,1727982679300,-2444.12,0.00033698,2]
[339780294,1727982679310,-1508.0,0.00033698,120]
[339780295,1727982679318,-641.35,0.00033698,120]
[339780296,1727982679328,-1142.79,0.00033698,120]
[339780297,1727982679337,-1847.83,0.00033698,120]
[339780298,1727982679346,-500.0,0.00033698,120]
[339780299,1727982679357,-500.0,0.00033698,120]
[339780300,1727982679366,-500.0,0.00033698,120]
[339780301,1727982679375,-273.7574697,0.00033698,120]
[339780302,1727982679384,-500.0,0.00033698,90]
[339780303,1727982679394,-3715.52,0.00033698,120]
[339780304,1727982679404,-532.65,0.00033698,120]
[339780305,1727982679413,-597.98,0.00033698,120]
[339780306,1727982679422,-500.0,0.00033698,120]
[339780307,1727982679434,-1463.16,0.00033698,120]
[339780308,1727982679444,-842.06,0.00033698,120]
[339780309,1727982679454,-1487.59,0.00033698,120]
[339780310,1727982679463,-1269.98,0.00033698,120]
[339780311,1727982679471,-959.6,0.00033698,120]
[339780312,1727982679480,-500.0,0.00033698,120]
[339780313,1727982679490,-500.0,0.00033698,120]
[339780314,1727982679499,-689.35,0.00033698,120]
[339780315,1727982679508,-3520.64,0.00033698,120]
[339780316,1727982679518,-500.0,0.00033698,120]
[339780317,1727982679527,-742.8,0.00033698,120]
[339780318,1727982679744,-500.0,0.00033698,120]
[339780319,1727982679754,-641.2,0.00033698,120]
[339780320,1727982679764,-500.0,0.00033698,120]
[339780321,1727982679773,-974.01,0.00033698,120]
[339780322,1727982679782,-848.87034089,0.00033698,120]
[339780323,1727982679796,-688.74965911,0.00033698,120]
[339780324,1727982679806,-1339.77,0.00033698,120]
[339780325,1727982679815,-500.0,0.00033698,5]
[339780326,1727982679825,-1031.42928329,0.00033698,120]
[339780327,1727982679840,-472.15550848,0.00033698,120]
[339780328,1727983242966,156.39,9.73e-05,2]
[339780329,1727983648869,205.39,9.23e-05,2]
[339780330,1727983671722,724.95784973,0.00013,15]
[339780352,1727983831957,-394.272155,0.00010446,2]
[339780353,1727983831967,-1331.2783601,0.00010499,2]
[339780354,1727983831977,-150.0,0.00010599,2]
[339780355,1727983831987,-151.137,0.000106,2]
[339780356,1727983831996,-172.8445,0.000106,2]
[339780357,1727983832005,-5124.3929639,0.000106,2]
[339780359,1727983832017,-338.7157361,0.000106,2]
[339780360,1727983832026,-4024.59267599,0.000106,2]
[339780361,1727983832038,-5221.07153573,0.000106,2]
[339780362,1727983832049,-3345.90028828,0.000106,2]
[339780363,1727983832059,-5600.55891515,0.000106,2]
[339780364,1727983832070,-588.74678369,0.000106,2]
[339780365,1727983832081,-1974.18309637,0.000106,2]
[339780366,1727983832092,-2248.6741294,0.000106,2]
[339780367,1727983832107,-750.26546194,0.000106,2]
[339780368,1727983832120,-1266.60175907,0.000106,2]
[339780369,1727983832131,-1255.12,0.000106,2]
[339780370,1727983832143,-5395.38119057,0.000106,2]
[339780371,1727983832154,-10445.23256961,0.000106,2]
[339780372,1727983832165,-17661.42862028,0.000106,2]
[339780373,1727983832174,-500.0,0.00010667,2]
[339780374,1727983832184,-250.0,0.00010697,2]
[339780375,1727983832194,-351.205,0.000107,2]
[339780376,1727983832204,-49624.428,0.000107,2]
[339780377,1727983832214,-4986.3405,0.000107,2]
[339780378,1727983832223,-4513.4936,0.000107,2]
[339780379,1727983832232,-3203.7251,0.000107,2]
[339780380,1727983832241,-100000.0,0.000107,2]
[339780382,1727983832251,-1758.8238,0.000107,2]
[339780384,1727983832260,-1000.0,0.000107,2]
[339780386,1727983832269,-1850.43,0.00010797,2]
[339780388,1727983832282,-5371.98432999,0.0001088,2]
[339780389,1727983832291,-7734.72988238,0.00010899,2]
[339780391,1727983832301,-968.80133575,0.000109,2]
[339780393,1727983832310,-207.61965061,0.000109,2]
[339780395,1727983832320,-222.26482986,0.000109,2]
[339780397,1727983832329,-159.88,0.00010959,2]
[339780398,1727983832339,-162.98,0.00010959,2]
[339780399,1727983832349,-323.6,0.00010959,2]
[339780400,1727983832359,-446.14,0.00010959,2]
[339780401,1727983832369,-499.99,0.00010959,2]
[339780402,1727983832379,-25358.55,0.00010959,2]
[339780403,1727983832389,-388.92563463,0.00010973,2]
[339780404,1727983832398,-247.71,0.00010973,2]
[339780405,1727983832407,-776.85,0.00010973,2]
[339780406,1727983832417,-500.0,0.00010973,2]
[339780407,1727983832427,-153.77,0.0001099,2]
[339780408,1727983832437,-153.77,0.0001099,2]
[339780409,1727983832447,-153.77,0.0001099,2]
[339780410,1727983832456,-153.77,0.0001099,2]
[339780411,1727983832466,-153.77,0.0001099,2]
[339780412,1727983832475,-153.77,0.0001099,2]
[339780413,1727983832484,-153.77,0.0001099,2]
[339780414,1727983832494,-153.77,0.0001099,2]
[339780415,1727983832504,-153.77,0.0001099,2]
[339780416,1727983832513,-153.77,0.0001099,2]
[339780417,1727983832523,-153.77,0.0001099,2]
[339780418,1727983832532,-153.77,0.0001099,2]
[339780419,1727983832542,-153.77,0.0001099,2]
[339780420,1727983832551,-153.77,0.0001099,2]
[339780421,1727983832560,-153.77,0.0001099,2]
[339780422,1727983832569,-153.77,0.0001099,2]
[339780423,1727983832579,-153.77,0.0001099,2]
[339780424,1727983832588,-153.77,0.0001099,2]
[339780425,1727983832597,-153.77,0.0001099,2]
[339780426,1727983832606,-153.77,0.0001099,2]
[339780427,1727983832618,-153.77,0.0001099,2]
[339780428,1727983832627,-153.77,0.0001099,2]
[339780429,1727983832636,-153.77,0.0001099,2]
[339780430,1727983832646,-153.77,0.0001099,2]
[339780431,1727983832655,-153.77,0.0001099,2]
[339780432,1727983832664,-153.77,0.0001099,2]
[339780433,1727983832674,-153.77,0.0001099,2]
[339780434,1727983832683,-153.77,0.0001099,2]
[339780435,1727983832692,-153.77,0.0001099,2]
[339780436,1727983832701,-153.77,0.0001099,2]
[339780437,1727983832711,-153.77,0.0001099,2]
[339780438,1727983832720,-153.77,0.0001099,2]
[339780439,1727983832730,-153.77,0.0001099,2]
[339780440,1727983832740,-153.77,0.0001099,2]
[339780441,1727983832750,-84399.14181296,0.00010999,2]
[339780442,1727983832759,-500.0,0.00010999,2]
[339780443,1727983832770,-500.0,0.00010999,2]
[339780444,1727983832779,-200.11269034,0.00010999,2]
[339780445,1727983832788,-500.0,0.00010999,2]
[339780446,1727983832796,-500.0,0.00010999,2]
[339780447,1727983832806,-500.0,0.00010999,2]
[339780448,1727983832816,-500.0,0.00010999,2]
[339780449,1727983832826,-500.0,0.00010999,2]
[339780450,1727983832836,-500.0,0.00010999,2]
[339780451,1727983832845,-458.52678336,0.00010999,2]
[339780452,1727983832855,-500.0,0.00010999,2]
[339780453,1727983832867,-97866.51031579,0.00011,2]
[339780454,1727983832879,-562.21440665,0.00011,2]
[339780455,1727983832890,-1274.32993384,0.00011,2]
[339780456,1727983832901,-351.89855854,0.00011,2]
[339780457,1727983832917,-4212.6311127,0.00011,2]
[339780458,1727983832928,-337.34931894,0.00011,2]
[339780459,1727983832940,-2045.75766083,0.00011,2]
[339780460,1727983832952,-7068.50393134,0.00011,2]
[339780461,1727983832963,-8486.04533077,0.00011,2]
[339780462,1727983832974,-1285.70283055,0.00011,2]
[339780463,1727983832985,-357.46371413,0.00011,2]
[339780464,1727983832996,-3952.11216265,0.00011,2]
[339780465,1727983833008,-10402.4493057,0.00011,2]
[339780466,1727983833082,-2984.3221489,0.00011,2]
[339780467,1727983833094,-633.39617763,0.00011,2]
[339780468,1727983833105,-400.0,0.00011,2]
[339780469,1727983833117,-628.42,0.00011,2]
[339780470,1727983833129,-550.11742886,0.00011,2]
[339780471,1727983833141,-2498.3477175,0.00011,2]
[339780472,1727983833153,-3372.54487743,0.00011,2]
[339780473,1727983833164,-1855.65488508,0.00011,2]
[339780474,1727983833175,-983.93,0.00011,2]
[339780475,1727983833187,-737.5985368,0.00011,2]
[339780476,1727983833199,-664.57727663,0.00011,2]
[339780477,1727983833246,-793.35,0.00011,2]
[339780483,1727983837932,-612.18240239,0.000109,2]
[339780484,1727983837943,-308.42346545,0.000109,2]
[339780485,1727983837955,-313.27,0.000109,2]
[339780486,1727983837966,-1081.90370062,0.000109,2]
[339780487,1727983837977,-38.76132339,0.00011,2]
[339780488,1727983837990,-254.99999,0.00011,2]
[339780489,1727983838001,-423.30439528,0.00011,2]
[339780490,1727983838012,-1886.88,0.00011,2]
[339780491,1727983838024,-514.88286204,0.00011,2]
[339780492,1727983838035,-2757.58727979,0.00011,2]
[339780493,1727983838127,-497338.05667231,0.00011,2]
[339780494,1727983838136,-847.11636584,0.00011,2]
[339780495,1727983838146,-150.0,0.00011,2]
[339780496,1727983838155,-2526.42,0.00011,2]
[339780497,1727983838165,-2887779.6071291,0.00011,2]
[339780498,1727983838176,-788749.27545922,0.00011,2]
[339780499,1727983838187,-1850.0,0.00011,2]
[339780501,1727983838199,-18958.69146001,0.00011,2]
[339780503,1727983838210,-880.12,0.00011,2]
[339780506,1727983838226,-888.51999758,0.00011,2]
[339780508,1727983838239,-1372.2,0.00011,2]
[339780509,1727983838251,-745.29791805,0.00011,2]
[339780510,1727983838263,-597.24,0.00011,2]
[339780511,1727983838274,-1765.0,0.00011,2]
[339780512,1727983838285,-103352.02889805,0.00011,2]
[339780513,1727983838296,-471.39155754,0.00011,2]
[339780514,1727983838307,-765.41975306,0.00011,2]
[339780515,1727983838322,-1340.01178555,0.00011,2]
[339780516,1727983838333,-189368.57913535,0.00011,2]
[339780517,1727983838344,-941.43031319,0.00011,2]
[339780518,1727983838355,-879.14563992,0.00011,2]
[339780521,1727983838384,-5740.77834692,0.00011,2]
[339780523,1727983838396,-452.64,0.00011,2]
[339780524,1727983838407,-1524.03827589,0.00011,2]
[339780525,1727983838426,-22590.85096767,0.00011,2]
[339780526,1727983838438,-2056.46944238,0.00011,2]
[339780527,1727983838449,-1514.63437236,0.00011,2]
[339780528,1727983838460,-2397.52493888,0.00011,2]
[339780529,1727983838818,-3755.47355016,0.00011,2]
[339780530,1727983838830,-4936.4916975,0.00011,2]
[339780531,1727983838841,-1921.952907,0.00011,2]
[339780532,1727983838856,-1524.64822492,0.00011,2]
[339780533,1727983838867,-1629.6995626,0.00011,2]
[339780534,1727983838880,-1002.80179028,0.00011,2]
[339780535,1727983838892,-28766.3029231,0.00011,2]
[339780536,1727983838903,-6756.10214935,0.00011,2]
[339780537,1727983838915,-1893.1272692,0.00011,2]
[339780538,1727983838928,-659.75132017,0.00011,2]
[339780539,1727983838938,-947.15508015,0.00011,2]
[339780540,1727983838950,-348.23005832,0.00011,2]
[339780547,1727983839960,-1637.29710056,0.00011,2]
[339780548,1727983839972,-982.24203917,0.00011,2]
[339780549,1727983839984,-9876.60459717,0.00011,2]
[339780550,1727983839996,-511.70455756,0.00011,2]
[339780551,1727983840008,-384.644286,0.00011,2]
[339780552,1727983840020,-409.80227554,0.00011,2]
[339780553,1727983840032,-2364.77512759,0.00011,2]
[339780554,1727983840044,-1986.15335335,0.00011,2]
[339780555,1727983840056,-156894.73642967,0.00011,2]
[339780556,1727983840072,-9894.76560632,0.00011,2]
[339780557,1727983840084,-407.81743846,0.00011,2]
[339780558,1727983840095,-2586.02150144,0.00011,2]
[339780559,1727983840108,-26177.88669955,0.00011,2]
[339780560,1727983840120,-15122.18966287,0.00011,2]
[339780561,1727983840142,-269.5,0.00011,2]
[339780562,1727983840153,-2423.81989323,0.00011,2]
[339780563,1727983840165,-558.89350208,0.00011,2]
[339780564,1727983840178,-2400.47475159,0.00011,2]
[339780565,1727983840189,-13563.56734335,0.00011,2]
[339780566,1727983840205,-681.00513539,0.00011,2]
[339780567,1727983840216,-255.42348,0.00011,2]
[339780568,1727983840227,-8681.44286864,0.00011,2]
[339780569,1727983840239,-714.13926867,0.00011,2]
[339780570,1727983840250,-14231.06094401,0.00011,2]
[339780571,1727983840261,-31867.62894285,0.00011,2]
[339780572,1727983840272,-1370.37733886,0.00011,2]
[339780573,1727983840284,-681.43362743,0.00011,2]
[339780574,1727983840296,-1539.41274403,0.00011,2]
[339780575,1727983840308,-6984.13072256,0.00011,2]
[339780576,1727983840322,-573.21934277,0.00011,2]
[339780577,1727983840334,-11809.42168032,0.00011,2]
[339780579,1727983840346,-753.99558445,0.00011,2]
[339780582,1727983840374,-2879.466,0.00011,2]
[339780585,1727983840387,-616.89321857,0.00011,2]
[339780587,1727983840402,-3125258.06311807,0.00011,2]
[339780589,1727983840414,-336835.6538315,0.00011,2]
[339780591,1727983840427,-344475.0874631,0.00011,2]
[339780595,1727983840446,-927.22751103,0.00011,2]
[339780597,1727983840458,-1693.68717,0.00011,2]
[339780599,1727983840470,-489.17891229,0.00011,2]
[339780601,1727983840481,-818.06656972,0.00011,2]
[339780603,1727983840493,-4503.46066958,0.00011,2]
[339780605,1727983840504,-279142.77628386,0.00011,2]
[339780608,1727983840516,-530.86535505,0.00011,2]
[339780610,1727983840529,-339.48749399,0.00011,2]
[339780612,1727983840541,-985.8689958,0.00011,2]
[339780614,1727983840554,-597.01017384,0.00011,2]
[339780617,1727983840567,-540.93197098,0.00011,2]
[339780619,1727983840579,-60274.74175575,0.00011,2]
[339780621,1727983840591,-662.68309162,0.00011,2]
[339780623,1727983840603,-1048.582763,0.00011,2]
[339780624,1727983840615,-846.52210567,0.00011,2]
[339780625,1727983840627,-394.357,0.00011,2]
[339780852,1727983843022,-10066.86102212,0.00011,2]
[339780855,1727983843034,-18591.50459775,0.00011,2]
[339780858,1727983843046,-1838.78,0.00011,2]
[339780861,1727983843058,-4675.74706937,0.00011,2]
[339780865,1727983843083,-1598.31428799,0.00011,2]
[339780868,1727983843095,-735.896,0.00011,2]
[339780870,1727983843107,-4078.9714258,0.00011,2]
[339780872,1727983843119,-368.38459585,0.00011,2]
[339780874,1727983843131,-610.20934057,0.00011,2]
[339780877,1727983843143,-2789.29207492,0.00011,2]
[339780879,1727983843155,-411.7493109,0.00011,2]
[339780881,1727983843166,-16338.57730149,0.00011,2]
[339780887,1727983843215,-900.3451503,0.00011,2]
[339780895,1727983843283,-737.99988251,0.00011,2]
[339780897,1727983843295,-38532.7306735,0.00011,2]
[339780899,1727983843306,-8679.59506081,0.00011,2]
[339780901,1727983843320,-1949.7759653,0.00011,2]
[339780903,1727983843331,-500.23429319,0.00011,2]
[339780906,1727983843355,-445.70504057,0.00011,2]
[339780908,1727983843366,-1605.35180376,0.00011,2]
[339780911,1727983843379,-400.30481951,0.00011,2]
[339780913,1727983843391,-2625.08778736,0.00011,2]
[339780915,1727983843403,-298.93134934,0.00011,2]
[339780917,1727983843414,-659.97100001,0.00011,2]
[339780919,1727983843425,-1323.34911343,0.00011,2]
[339780921,1727983843437,-7483.98605945,0.00011,2]
[339780923,1727983843448,-1377.74172289,0.00011,2]
[339780932,1727983843521,-676.13840354,0.00011,2]
[339780934,1727983843533,-723.89621117,0.00011,2]
[339780936,1727983843544,-26440.5105801,0.00011,2]
[339780938,1727983843558,-20210.40040686,0.00011,2]